fUST/lending_fUST_20250301
["ID","MTS","AMOUNT","RATE_DAILY","PERIOD"]
[354877698,1740767440152,-500.0,0.00049315,120]
[354877699,1740767440164,-500.0,0.00049315,120]
[354877700,1740767440175,-500.0,0.00049315,120]
[354877701,1740767440185,-500.0,0.00049315,120]
[354877702,1740767440194,-507.86644941,0.00049315,120]
[354877703,1740767440204,-500.0,0.00049315,120]
[354877704,1740767440214,-500.0,0.00049315,120]
[354877705,1740767440224,-500.0,0.00049315,120]
[354877706,1740767440235,-510.65334066,0.00049315,120]
[354877707,1740767440246,-500.0,0.00049315,120]
[354877708,1740767440258,-500.0,0.00049315,120]
[354877709,1740767440270,-500.0,0.00049315,120]
[354877710,1740767440280,-500.0,0.00049315,120]
[354877711,1740767440290,-500.0,0.00049315,120]
[354877712,1740767440302,-500.0,0.00049315,120]
[354877713,1740767440312,-500.0,0.00049315,120]
[354877714,1740767440322,-500.0,0.00049315,120]
[354877715,1740767440333,-502.8060418,0.00049315,120]
[354877716,1740767440343,-500.0,0.00049315,120]
[354877717,1740767440353,-500.0,0.00049315,120]
[354877718,1740767440363,-500.0,0.00049315,120]
[354877720,1740767440374,-500.0,0.00049315,120]
[354877722,1740767440384,-500.0,0.00049315,120]
[354877723,1740767440395,-500.0,0.00049315,120]
[354877724,1740767440405,-501.5350715,0.00049315,120]
[354877725,1740767440416,-500.0,0.00049315,120]
[354877726,1740767440426,-500.0,0.00049315,120]
[354877727,1740767440437,-644.75423172,0.00049315,120]
[354877728,1740767440447,-500.0,0.00049315,120]
[354877729,1740767440456,-500.0,0.00049315,120]
[354877730,1740767440466,-500.0,0.00049315,120]
[354877731,1740767440476,-500.0,0.00049315,120]
[354877732,1740767440485,-500.0,0.00049315,120]
[354877733,1740767440496,-500.0,0.00049315,120]
[354877734,1740767440505,-500.0,0.00049315,120]
[354877735,1740767440515,-500.0,0.00049315,120]
[354877736,1740767440524,-377.48859279,0.00049315,120]
[354877737,1740767440534,-500.0,0.00049315,120]
[354877738,1740767440544,-500.0,0.00049315,120]
[354877739,1740767440554,-500.0,0.00049315,120]
[354877740,1740767440564,-500.0,0.00049315,120]
[354877741,1740767440573,-500.0,0.00049315,120]
[354877742,1740767440583,-1408.56,0.00049315,120]
[354877743,1740767440593,-610.92,0.00049315,120]
[354877744,1740767440607,-500.0,0.00049315,120]
[354877745,1740767440617,-563.73,0.00049315,120]
[354877746,1740767440627,-500.0,0.00049315,120]
[354877747,1740767440637,-502.11,0.00049315,120]
[354877748,1740767440647,-500.0,0.00049315,120]
[354877749,1740767440657,-500.0,0.00049315,120]
[354877750,1740767440669,-500.0,0.00049315,120]
[354877751,1740767440679,-500.0,0.00049315,120]
[354877752,1740767440688,-500.0,0.00049315,120]
[354877753,1740767440698,-500.0,0.00049315,120]
[354877754,1740767440707,-500.0,0.00049315,120]
[354877755,1740767440716,-682.17,0.00049315,120]
[354877756,1740767440726,-405.77493244,0.00049315,120]
[354877757,1740767440736,-500.0,0.00049315,120]
[354877758,1740767440745,-500.0,0.00049315,120]
[354877759,1740767440754,-442.1635997,0.00049315,120]
[354877760,1740767440763,-500.0,0.00049315,120]
[354877761,1740767440774,-500.0,0.00049315,120]
[354877762,1740767440783,-500.0,0.00049315,120]
[354877763,1740767440792,-500.0,0.00049315,120]
[354877764,1740767440802,-511.02878121,0.00049315,120]
[354877765,1740767440811,-500.0,0.00049315,120]
[354877766,1740767440820,-500.0,0.00049315,120]
[354877767,1740767440830,-394.47669321,0.00049315,120]
[354877768,1740767440839,-500.0,0.00049315,120]
[354877769,1740767440849,-500.0,0.00049315,120]
[354877770,1740767440858,-502.6046389,0.00049315,120]
[354877771,1740767440868,-500.0,0.00049315,120]
[354877772,1740767440877,-500.0,0.00049315,120]
[354877773,1740767440887,-521.29756474,0.00049315,120]
[354877774,1740767440896,-500.84187753,0.00049315,120]
[354877775,1740767440906,-500.0,0.00049315,120]
[354877776,1740767440917,-500.0,0.00049315,120]
[354877777,1740767440927,-500.0,0.00049315,45]
[354877778,1740767440936,-500.0,0.00049315,120]
[354877779,1740767440946,-572.11083812,0.00049315,120]
[354877780,1740767440956,-500.0,0.00049315,120]
[354877781,1740767440966,-500.0,0.00049315,120]
[354877782,1740767440975,-500.0,0.00049315,120]
[354877783,1740767440985,-767.56,0.00049315,120]
[354877784,1740767440994,-500.0,0.00049315,120]
[354877785,1740767441004,-1484.25,0.00049315,120]
[354877786,1740767441013,-500.0,0.00049315,120]
[354877787,1740767441022,-500.0,0.00049315,120]
[354877788,1740767441031,-500.0,0.00049315,120]
[354877789,1740767441040,-500.0,0.00049315,120]
[354877790,1740767441050,-500.0,0.00049315,120]
[354877791,1740767441059,-500.0,0.00049315,120]
[354877792,1740767441069,-500.0,0.00049315,120]
[354877793,1740767441078,-500.0,0.00049315,120]
[354877794,1740767441088,-500.0,0.00049315,120]
[354877795,1740767441097,-500.0,0.00049315,120]
[354877796,1740767441107,-500.0,0.00049315,120]
[354877797,1740767441117,-500.0,0.00049315,120]
[354877798,1740767441127,-526.99,0.00049315,120]
[354877799,1740767441136,-500.0,0.00049315,120]
[354877800,1740767441145,-500.0,0.00049315,120]
[354877801,1740767441155,-500.07,0.00049315,120]
[354877802,1740767441167,-500.0,0.00049315,120]
[354877803,1740767441176,-1008.99,0.00049315,120]
[354877804,1740767441186,-500.0,0.00049315,120]
[354877805,1740767441195,-500.0,0.00049315,120]
[354877806,1740767441204,-500.0,0.00049315,120]
[354877807,1740767441214,-500.86606789,0.00049315,120]
[354877808,1740767441223,-500.0,0.00049315,120]
[354877809,1740767441233,-502.22840812,0.00049315,120]
[354877810,1740767441242,-500.0,0.00049315,120]
[354877811,1740767441251,-770.96,0.00049315,120]
[354877812,1740767441261,-500.0,0.00049315,120]
[354877813,1740767441270,-500.0,0.00049315,120]
[354877814,1740767441280,-1000.0,0.00049315,20]
[354877815,1740767441290,-508.95171937,0.00049315,120]
[354877816,1740767441299,-500.0,0.00049315,120]
[354877817,1740767441308,-500.0,0.00049315,120]
[354877818,1740767441317,-500.0,0.00049315,120]
[354877819,1740767441327,-500.0,0.00049315,120]
[354877820,1740767441336,-500.0,0.00049315,120]
[354877821,1740767441346,-500.0,0.00049315,120]
[354877822,1740767441355,-500.0,0.00049315,120]
[354877823,1740767441364,-500.0,0.00049315,120]
[354877824,1740767441374,-500.0,0.00049315,120]
[354877825,1740767441383,-500.0,0.00049315,120]
[354877826,1740767441392,-500.0,0.00049315,120]
[354877827,1740767441402,-500.0,0.00049315,120]
[354877828,1740767441414,-500.0,0.00049315,120]
[354877829,1740767441424,-500.0,0.00049315,120]
[354877830,1740767441433,-500.0,0.00049315,120]
[354877831,1740767441444,-500.0,0.00049315,120]
[354877832,1740767441454,-1385.47,0.00049315,120]
[354877833,1740767441463,-583.01643664,0.00049315,120]
[354877834,1740767441473,-500.0,0.00049315,120]
[354877835,1740767441483,-224.39593508,0.00049315,120]
[354877836,1740767441492,-500.0,0.00049315,120]
[354877837,1740767441502,-529.43,0.00049315,120]
[354877838,1740767441512,-500.0,0.00049315,120]
[354877839,1740767441521,-500.0,0.00049315,120]
[354877840,1740767441531,-500.0,0.00049315,120]
[354877841,1740767441540,-500.0,0.00049315,120]
[354877842,1740767441550,-500.0,0.00049315,120]
[354877843,1740767441559,-500.0,0.00049315,120]
[354877844,1740767441569,-693.37,0.00049315,120]
[354877845,1740767441578,-500.0,0.00049315,120]
[354877846,1740767441591,-500.0,0.00049315,120]
[354877847,1740767441600,-207.1529511,0.00049315,120]
[354877848,1740767441610,-500.0,0.00049315,120]
[354877849,1740767441619,-500.0,0.00049315,120]
[354877850,1740767441628,-500.0,0.00049315,120]
[354877851,1740767441638,-500.0,0.00049315,120]
[354877852,1740767441647,-1003.18105206,0.00049315,5]
[354877853,1740767441656,-502.35165909,0.00049315,120]
[354877854,1740767441668,-500.0,0.00049315,120]
[354877855,1740767441679,-500.0,0.00049315,120]
[354877856,1740767441688,-500.0,0.00049315,120]
[354877857,1740767441698,-500.0,0.00049315,120]
[354877858,1740767441708,-500.0,0.00049315,120]
[354877859,1740767441717,-1829.34,0.00049315,120]
[354877860,1740767441727,-500.0,0.00049315,120]
[354877861,1740767441736,-500.0,0.00049315,120]
[354877862,1740767441745,-500.0,0.00049315,120]
[354877863,1740767441755,-500.0,0.00049315,120]
[354877864,1740767441764,-578.61772743,0.00049315,120]
[354877865,1740767441773,-500.0,0.00049315,120]
[354877866,1740767441783,-500.0,0.00049315,120]
[354877867,1740767441792,-500.0,0.00049315,120]
[354877868,1740767441802,-500.0,0.00049315,120]
[354877869,1740767441812,-500.0,0.00049315,120]
[354877870,1740767441821,-500.0,0.00049315,120]
[354877871,1740767441831,-500.0,0.00049315,120]
[354877872,1740767441840,-274.63443474,0.00049315,60]
[354877873,1740767441850,-500.0,0.00049315,120]
[354877874,1740767441859,-500.0,0.00049315,120]
[354877875,1740767441868,-500.0,0.00049315,120]
[354877876,1740767441878,-500.0,0.00049315,120]
[354877877,1740767441887,-500.0,0.00049315,120]
[354877878,1740767441897,-500.0,0.00049315,120]
[354877879,1740767441906,-1197.98,0.00049315,120]
[354877880,1740767441920,-500.0,0.00049315,120]
[354877881,1740767441930,-500.0,0.00049315,120]
[354877882,1740767441939,-537.94,0.00049315,120]
[354877883,1740767441949,-668.04,0.00049315,120]
[354877884,1740767441959,-500.0,0.00049315,120]
[354877885,1740767441969,-500.0,0.00049315,120]
[354877886,1740767441978,-500.0,0.00049315,120]
[354877887,1740767441988,-717.28,0.00049315,120]
[354877888,1740767441997,-2492.41,0.00049315,120]
[354877889,1740767442006,-500.0,0.00049315,10]
[354877890,1740767442016,-500.0,0.00049315,120]
[354877891,1740767442027,-500.0,0.00049315,120]
[354877892,1740767442037,-500.0,0.00049315,120]
[354877893,1740767442047,-502.48358564,0.00049315,120]
[354877894,1740767442056,-500.0,0.00049315,120]
[354877895,1740767442066,-500.0,0.00049315,120]
[354877896,1740767442076,-862.32,0.00049315,120]
[354877897,1740767442085,-500.0,0.00049315,120]
[354877898,1740767442095,-500.0,0.00049315,120]
[354877899,1740767442105,-1027.75,0.00049315,120]
[354877900,1740767442115,-1239.7,0.00049315,120]
[354877901,1740767442124,-500.0,0.00049315,120]
[354877902,1740767442134,-500.0,0.00049315,120]
[354877903,1740767442144,-500.0,0.00049315,120]
[354877904,1740767442154,-500.0,0.00049315,120]
[354877905,1740767442167,-500.0,0.00049315,120]
[354877906,1740767442178,-500.0,0.00049315,120]
[354877907,1740767442188,-1799.06,0.00049315,120]
[354877908,1740767442198,-500.0,0.00049315,120]
[354877909,1740767442209,-2879.57,0.00049315,120]
[354877910,1740767442218,-676.76,0.00049315,120]
[354877911,1740767442229,-500.0,0.00049315,120]
[354877912,1740767442239,-500.0,0.00049315,120]
[354877913,1740767442249,-500.0,0.00049315,20]
[354877914,1740767442259,-500.0,0.00049315,120]
[354877915,1740767442269,-500.0,0.00049315,120]
[354877916,1740767442279,-603.64961513,0.00049315,120]
[354877917,1740767442290,-1310.76,0.00049315,120]
[354877918,1740767442300,-861.01,0.00049315,120]
[354877919,1740767442309,-500.0,0.00049315,120]
[354877920,1740767442319,-941.54,0.00049315,120]
[354877921,1740767442328,-500.0,0.00049315,120]
[354877922,1740767442338,-614.47620557,0.00049315,120]
[354877923,1740767442348,-500.0,0.00049315,120]
[354877924,1740767442357,-500.0,0.00049315,120]
[354877925,1740767442367,-500.0,0.00049315,120]
[354877926,1740767442376,-500.0,0.00049315,120]
[354877927,1740767442386,-500.0,0.00049315,120]
[354877928,1740767442395,-500.0,0.00049315,120]
[354877929,1740767442405,-500.0,0.00049315,120]
[354877930,1740767442418,-500.0,0.00049315,120]
[354877931,1740767442583,-577.85205383,0.00049315,120]
[354877932,1740767442593,-822.17,0.00049315,120]
[354877933,1740767442606,-644.42,0.00049315,120]
[354877934,1740767442616,-500.0,0.00049315,120]
[354877935,1740767442626,-500.0,0.00049315,120]
[354877936,1740767442635,-500.0,0.00049315,120]
[354877937,1740767442644,-500.0,0.00049315,120]
[354877938,1740767442654,-500.0,0.00049315,120]
[354877939,1740767442665,-500.0,0.00049315,120]
[354877941,1740767442675,-372.95297593,0.00049315,120]
[354877943,1740767442686,-500.0,0.00049315,120]
[354877945,1740767442695,-500.0,0.00049315,120]
[354877947,1740767442704,-386.3711106,0.00049315,120]
[354877948,1740767442713,-500.0,0.00049315,120]
[354877950,1740767442723,-500.0,0.00049315,120]
[354877953,1740767442732,-500.0,0.00049315,120]
[354877954,1740767442742,-500.0,0.00049315,120]
[354877957,1740767442751,-500.0,0.00049315,120]
[354877959,1740767442761,-500.0,0.00049315,120]
[354877962,1740767442771,-500.0,0.00049315,120]
[354877964,1740767442781,-500.0,0.00049315,120]
[354877966,1740767442791,-500.0,0.00049315,120]
[354877967,1740767442800,-504.45,0.00049315,120]
[354877968,1740767442810,-500.0,0.00049315,120]
[354877969,1740767442819,-500.0,0.00049315,120]
[354877970,1740767442828,-500.0,0.00049315,120]
[354877971,1740767442838,-1615.11,0.00049315,120]
[354877972,1740767442847,-500.0,0.00049315,120]
[354877973,1740767442856,-500.0,0.00049315,120]
[354877974,1740767442866,-500.0,0.00049315,120]
[354877975,1740767442876,-1000.0,0.00049315,120]
[354877976,1740767442885,-500.0,0.00049315,120]
[354877977,1740767442895,-500.0,0.00049315,120]
[354877978,1740767442904,-500.0,0.00049315,120]
[354877979,1740767442916,-500.0,0.00049315,120]
[354877980,1740767442925,-500.0,0.00049315,120]
[354877981,1740767442935,-500.0,0.00049315,120]
[354877983,1740767442944,-500.0,0.00049315,120]
[354877984,1740767442955,-500.0,0.00049315,120]
[354877985,1740767442965,-500.0,0.00049315,120]
[354877986,1740767442975,-500.0,0.00049315,120]
[354877987,1740767442984,-500.0,0.00049315,120]
[354877988,1740767442994,-500.0,0.00049315,120]
[354877989,1740767443003,-500.0,0.00049315,120]
[354877990,1740767443013,-892.36,0.00049315,120]
[354877991,1740767443022,-500.0,0.00049315,120]
[354877992,1740767443032,-1145.89,0.00049315,120]
[354877993,1740767443041,-500.0,0.00049315,120]
[354877994,1740767443051,-1293.49,0.00049315,120]
[354877995,1740767443060,-3000.0,0.00049315,120]
[354877996,1740767443069,-1698.42,0.00049315,120]
[354877997,1740767443079,-2893.37,0.00049315,120]
[354877998,1740767443088,-500.0,0.00049315,120]
[354877999,1740767443097,-500.0,0.00049315,120]
[354878000,1740767443106,-500.0,0.00049315,120]
[354878001,1740767443116,-500.0,0.00049315,120]
[354878002,1740767443125,-500.0,0.00049315,120]
[354878003,1740767443134,-500.0,0.00049315,120]
[354878004,1740767443144,-504.37632929,0.00049315,120]
[354878005,1740767443154,-500.0,0.00049315,120]
[354878006,1740767443165,-500.0,0.00049315,120]
[354878007,1740767443175,-500.0,0.00049315,120]
[354878008,1740767443184,-1455.26,0.00049315,120]
[354878009,1740767443194,-726.28,0.00049315,120]
[354878010,1740767443203,-501.22037166,0.00049315,120]
[354878011,1740767443212,-500.0,0.00049315,120]
[354878012,1740767443222,-500.0,0.00049315,120]
[354878013,1740767443231,-500.0,0.00049315,120]
[354878014,1740767443241,-2398.71,0.00049315,120]
[354878015,1740767443251,-1726.81,0.00049315,120]
[354878016,1740767443264,-1257.58,0.00049315,120]
[354878017,1740767443274,-500.0,0.00049315,120]
[354878018,1740767443283,-500.0,0.00049315,120]
[354878019,1740767443292,-520.55,0.00049315,120]
[354878020,1740767443301,-1886.81,0.00049315,120]
[354878021,1740767443311,-500.0,0.00049315,120]
[354878022,1740767443320,-500.0,0.00049315,120]
[354878023,1740767443329,-500.0,0.00049315,120]
[354878024,1740767443339,-500.0,0.00049315,120]
[354878025,1740767443348,-771.29,0.00049315,120]
[354878026,1740767443357,-500.0,0.00049315,120]
[354878027,1740767443366,-507.98947781,0.00049315,120]
[354878028,1740767443376,-500.0,0.00049315,120]
[354878029,1740767443385,-620.2,0.00049315,120]
[354878030,1740767443394,-505.59517431,0.00049315,120]
[354878031,1740767443404,-1108.52,0.00049315,120]
[354878032,1740767443415,-617.64,0.00049315,120]
[354878033,1740767443425,-500.0,0.00049315,120]
[354878034,1740767443435,-1732.87,0.00049315,120]
[354878035,1740767443444,-500.0,0.00049315,120]
[354878036,1740767443453,-500.0,0.00049315,30]
[354878037,1740767443462,-500.0,0.00049315,120]
[354878038,1740767443471,-597.90399415,0.00049315,120]
[354878039,1740767443480,-500.0,0.00049315,120]
[354878040,1740767443489,-500.0,0.00049315,120]
[354878041,1740767443499,-500.0,0.00049315,120]
[354878042,1740767443508,-500.0,0.00049315,120]
[354878043,1740767443517,-500.0,0.00049315,120]
[354878044,1740767443526,-500.0,0.00049315,120]
[354878045,1740767443536,-500.0,0.00049315,120]
[354878046,1740767443545,-500.0,0.00049315,120]
[354878047,1740767443555,-680.43,0.00049315,120]
[354878048,1740767443564,-500.0,0.00049315,120]
[354878049,1740767443574,-500.0,0.00049315,120]
[354878050,1740767443584,-500.0,0.00049315,120]
[354878051,1740767443597,-500.0,0.00049315,120]
[354878052,1740767443606,-500.0,0.00049315,120]
[354878053,1740767443614,-500.0,0.00049315,120]
[354878054,1740767443624,-500.0,0.00049315,120]
[354878055,1740767443633,-500.0,0.00049315,120]
[354878056,1740767443642,-504.16474357,0.00049315,120]
[354878057,1740767443651,-500.0,0.00049315,120]
[354878058,1740767443662,-500.0,0.00049315,120]
[354878059,1740767443673,-535.66,0.00049315,120]
[354878060,1740767443682,-500.0,0.00049315,120]
[354878061,1740767443695,-500.0,0.00049315,120]
[354878062,1740767443705,-500.0,0.00049315,120]
[354878063,1740767443715,-500.0,0.00049315,120]
[354878064,1740767443725,-500.0,0.00049315,120]
[354878065,1740767443735,-507.32732665,0.00049315,120]
[354878066,1740767443745,-500.0,0.00049315,120]
[354878067,1740767443755,-500.0,0.00049315,120]
[354878068,1740767443764,-1508.18,0.00049315,120]
[354878069,1740767443774,-500.0,0.00049315,120]
[354878070,1740767443784,-500.0,0.00049315,120]
[354878071,1740767443794,-500.0,0.00049315,120]
[354878072,1740767443804,-500.0,0.00049315,120]
[354878073,1740767443813,-500.0,0.00049315,120]
[354878074,1740767443823,-500.0,0.00049315,120]
[354878075,1740767443834,-383.57,0.00049315,120]
[354878076,1740767443844,-2045.56,0.00049315,120]
[354878077,1740767443854,-500.0,0.00049315,120]
[354878078,1740767443863,-500.0,0.00049315,120]
[354878079,1740767443873,-500.0,0.00049315,120]
[354878080,1740767443883,-500.0,0.00049315,120]
[354878081,1740767443892,-500.0,0.00049315,120]
[354878082,1740767443902,-500.0,0.00049315,120]
[354878083,1740767443914,-835.3,0.00049315,120]
[354878084,1740767443924,-523.78549582,0.00049315,120]
[354878085,1740767443933,-2905.75,0.00049315,120]
[354878086,1740767443943,-500.0,0.00049315,120]
[354878087,1740767443953,-500.0,0.00049315,120]
[354878088,1740767443963,-500.0,0.00049315,120]
[354878089,1740767443973,-500.0,0.00049315,120]
[354878090,1740767443983,-500.98011599,0.00049315,120]
[354878091,1740767443992,-652.54,0.00049315,120]
[354878092,1740767444002,-500.0,0.00049315,120]
[354878093,1740767444011,-500.0,0.00049315,120]
[354878094,1740767444021,-500.0,0.00049315,120]
[354878095,1740767444031,-500.0,0.00049315,120]
[354878096,1740767444040,-500.0,0.00049315,120]
[354878097,1740767444050,-500.0,0.00049315,120]
[354878098,1740767444060,-500.0,0.00049315,120]
[354878099,1740767444070,-500.0,0.00049315,120]
[354878100,1740767444079,-500.0,0.00049315,120]
[354878101,1740767444089,-3799.75,0.00049315,120]
[354878102,1740767444099,-558.12,0.00049315,120]
[354878103,1740767444108,-500.0,0.00049315,120]
[354878104,1740767444118,-500.0,0.00049315,120]
[354878105,1740767444127,-507.95315121,0.00049315,120]
[354878106,1740767444136,-500.0,0.00049315,120]
[354878107,1740767444146,-500.0,0.00049315,120]
[354878108,1740767444155,-500.0,0.00049315,120]
[354878109,1740767444167,-500.0,0.00049315,120]
[354878110,1740767444177,-500.0,0.00049315,120]
[354878111,1740767444187,-500.0,0.00049315,120]
[354878112,1740767444196,-500.0,0.00049315,120]
[354878113,1740767444206,-500.0,0.00049315,120]
[354878114,1740767444215,-502.37414069,0.00049315,120]
[354878115,1740767444226,-500.0,0.00049315,120]
[354878116,1740767444236,-1231.18,0.00049315,120]
[354878117,1740767444246,-500.0,0.00049315,120]
[354878118,1740767444256,-500.0,0.00049315,120]
[354878119,1740767444267,-500.0,0.00049315,120]
[354878120,1740767444276,-500.0,0.00049315,120]
[354878121,1740767444286,-500.0,0.00049315,120]
[354878122,1740767444296,-500.0,0.00049315,120]
[354878123,1740767444306,-948.42,0.00049315,120]
[354878124,1740767444316,-898.03,0.00049315,120]
[354878125,1740767444327,-500.0,0.00049315,120]
[354878126,1740767444337,-500.0,0.00049315,120]
[354878127,1740767444346,-500.0,0.00049315,120]
[354878128,1740767444355,-508.42206857,0.00049315,120]
[354878129,1740767444365,-500.0,0.00049315,120]
[354878130,1740767444374,-2286.03,0.00049315,120]
[354878131,1740767444384,-500.0,0.00049315,120]
[354878132,1740767444393,-500.0,0.00049315,120]
[354878133,1740767444403,-1618.68,0.00049315,120]
[354878134,1740767444413,-895.03,0.00049315,120]
[354878135,1740767444423,-500.0,0.00049315,120]
[354878136,1740767444432,-902.33,0.00049315,120]
[354878137,1740767444442,-500.0,0.00049315,120]
[354878138,1740767444451,-395.39839817,0.00049315,120]
[354878139,1740767444461,-500.0,0.00049315,21]
[354878140,1740767444471,-500.0,0.00049315,120]
[354878141,1740767444481,-500.0,0.00049315,120]
[354878142,1740767444490,-530.74206459,0.00049315,120]
[354878143,1740767444500,-796.84,0.00049315,120]
[354878144,1740767444510,-500.0,0.00049315,120]
[354878145,1740767444519,-500.0,0.00049315,120]
[354878146,1740767444529,-500.0,0.00049315,120]
[354878147,1740767444538,-500.0,0.00049315,120]
[354878148,1740767444548,-500.0,0.00049315,120]
[354878149,1740767444558,-500.0,0.00049315,120]
[354878150,1740767444567,-500.0,0.00049315,120]
[354878151,1740767444576,-2201.06,0.00049315,120]
[354878152,1740767444586,-500.0,0.00049315,7]
[354878153,1740767444595,-500.0,0.00049315,120]
[354878154,1740767444609,-505.36780972,0.00049315,120]
[354878155,1740767444618,-899.83,0.00049315,120]
[354878156,1740767444628,-1718.12,0.00049315,120]
[354878157,1740767444638,-2708.77,0.00049315,120]
[354878158,1740767444648,-500.0,0.00049315,120]
[354878159,1740767444658,-1475.16,0.00049315,120]
[354878160,1740767444671,-500.0,0.00049315,120]
[354878161,1740767444683,-500.0,0.00049315,120]
[354878162,1740767444692,-500.0,0.00049315,120]
[354878163,1740767444702,-500.0,0.00049315,120]
[354878164,1740767444711,-2322.75,0.00049315,120]
[354878165,1740767444721,-500.0,0.00049315,120]
[354878166,1740767444730,-500.0,0.00049315,120]
[354878167,1740767444740,-911.71,0.00049315,120]
[354878168,1740767444750,-500.0,0.00049315,120]
[354878169,1740767444759,-500.0,0.00049315,120]
[354878170,1740767444770,-1488.36,0.00049315,120]
[354878171,1740767444779,-500.0,0.00049315,120]
[354878172,1740767444788,-226792.92,0.00049315,7]
[354878173,1740767444798,-500.0,0.00049315,120]
[354878174,1740767444808,-500.0,0.00049315,120]
[354878175,1740767444818,-500.0,0.00049315,120]
[354878176,1740767444827,-500.0,0.00049315,120]
[354878177,1740767444837,-500.0,0.00049315,120]
[354878178,1740767444846,-316.03495866,0.00049315,120]
[354878179,1740767444856,-770.71,0.00049315,120]
[354878180,1740767444865,-944.35,0.00049315,120]
[354878181,1740767444875,-500.0,0.00049315,120]
[354878182,1740767444884,-500.0,0.00049315,120]
[354878183,1740767444894,-511.45442932,0.00049315,120]
[354878184,1740767444903,-1214.56,0.00049315,120]
[354878185,1740767444914,-665.93,0.00049315,120]
[354878186,1740767444924,-500.0,0.00049315,120]
[354878187,1740767444934,-500.0,0.00049315,120]
[354878188,1740767444944,-1956.93,0.00049315,120]
[354878189,1740767444954,-1930.9,0.00049315,120]
[354878190,1740767444964,-513.7,0.00049315,120]
[354878191,1740767444973,-500.0,0.00049315,120]
[354878192,1740767444983,-4024.13,0.00049315,120]
[354878193,1740767444993,-500.0,0.00049315,120]
[354878194,1740767445002,-1690.21,0.00049315,120]
[354878195,1740767445011,-904.13,0.00049315,120]
[354878196,1740767445021,-500.0,0.00049315,120]
[354878197,1740767445031,-500.0,0.00049315,7]
[354878198,1740767445040,-500.0,0.00049315,120]
[354878199,1740767445049,-500.0,0.00049315,120]
[354878200,1740767445058,-500.0,0.00049315,120]
[354878201,1740767445068,-1995.25,0.00049315,120]
[354878202,1740767445086,-500.0,0.00049315,120]
[354878203,1740767445097,-500.0,0.00049315,120]
[354878204,1740767445107,-500.0,0.00049315,120]
[354878205,1740767445117,-500.0,0.00049315,120]
[354878206,1740767445127,-721.02,0.00049315,120]
[354878207,1740767445136,-850.17,0.00049315,120]
[354878208,1740767445146,-500.0,0.00049315,120]
[354878209,1740767445155,-500.0,0.00049315,120]
[354878210,1740767445167,-384.1121605,0.00049315,120]
[354878211,1740767445177,-2761.74,0.00049315,120]
[354878212,1740767445187,-500.0,0.00049315,120]
[354878213,1740767445196,-1350.48,0.00049315,120]
[354878214,1740767445206,-500.0,0.00049315,120]